{"text_format":"1","workbook":"xlsx","n_sheets":3,"sheets":["selecteer de teksten","geselecteerde teksten","omzettingstabel"],"not_rendered":{"charts":0,"images":2,"macros":1,"external_links":0,"defined_names":7,"comments":0,"pivot_tables":0},"unopened":[],"bounds":{"document_bytes":16777216,"sheet_cells":100000,"rows_first":2000,"rows_last":500,"rows_between":2000,"halvings":0,"cell_chars":16384,"cell_head_chars":4096},"cells_cut":0,"cells_raw":0,"read":"whole","date_system":"1900"}

{"sheet":"selecteer de teksten","index":0,"n_rows":136,"n_cols":21,"rows_kept":136,"cut":false,"hidden":false,"merged":[[2,14,2,15],[8,14,8,15]]}
[null,"Engels vwo"]
[]
[null,null,"jaar","tekst","omschrijving","indicatie moeilijkheidsgraad","P","L","N",null,"ü",null,null,null,"grenswaarden",null,null,"P","L","N","bijdrage"]
[null,null,2012,1,"Clothes with nanotube ink",{"$f":"IF(G4>P$7,\"makkelijke tekst\",IF(G4<P$6,\"moeilijke tekst\",\"tekst van gemiddelde moeilijkheid\"))","v":"makkelijke tekst"},86.555555555555557,1,-0.99000000000000021,null,null,null,null,null,"gemiddelde",{"$f":"AVERAGE(G4:G991)","v":66.831102756892221},null,{"$f":"IF($K4=\"ü\",$G4,\"\")","v":""},{"$f":"IF($K4=\"ü\",$H4,\"\")","v":""},{"$f":"IF($K4=\"ü\",$I4,\"\")","v":""},{"$f":"IF($K4=\"ü\",$G4*$H4,\"\")","v":""}]
[null,null,2012,2,"Africa Invest Capital-Protected Plan","makkelijke tekst",84.555555555555557,2,-0.8100000000000005,null,null,null,null,null,"standaarddeviatie",{"$f":"STDEVA(G4:G991)","v":13.0228309443174},null,"","","",""]
[null,null,2012,3,"The following text…","tekst van gemiddelde moeilijkheid",62.555555555555557,3,1.17,null,null,null,null,null,"M-S",{"$f":"P4-P5","v":53.808271812574823},null,"","","",""]
[null,null,2012,4,"SLF",{"$f":"IF(G7>P$7,\"makkelijke tekst\",IF(G7<P$6,\"moeilijke tekst\",\"tekst van gemiddelde moeilijkheid\"))","v":"tekst van gemiddelde moeilijkheid"},73.555555555555557,1,0.17999999999999972,null,null,null,null,null,"M+S",{"$f":"P4+P5","v":79.853933701209627},null,"","","",""]
[null,null,2012,5,"Nanny doesn’t know best","tekst van gemiddelde moeilijkheid",66.555555555555557,4,0.80999999999999961,null,null,null,null,null,null,null,null,"","","",""]
[null,null,2012,6,"The many paths to peace","tekst van gemiddelde moeilijkheid",67.555555555555557,10,0.71999999999999975,null,null,null,null,null,"gewogen P en N",null,null,"","","",""]
[null,null,2012,7,"Reading on the web is not really reading","tekst van gemiddelde moeilijkheid",74.555555555555557,11,8.9999999999999858E-2,null,null,null,null,null,"totale bijdrage",{"$f":"SUM(U4:U991)","v":0},null,"","","",""]
[null,null,2012,8,"Black and white – and red all over","tekst van gemiddelde moeilijkheid",65.555555555555557,8,0.89999999999999947,null,null,null,null,null,"gem sc",{"$f":"P10/100","v":0},null,"","","",""]
[null,null,2012,9,"Does a degree really set you up for life?","moeilijke tekst",53.555555555555557,7,1.9799999999999995,null,null,null,null,null,"totale lengte",{"$f":"SUM(S4:S991)","v":0},null,"","","",""]
[null,null,2013,1,"Curse of giftedness","moeilijke tekst",49.888888888888886,1,2.3099999999999996,null,null,null,null,null,"9*P",{"$f":"IF(P12=0,0,9*P11/P12)","v":0},null,"","","",""]
[null,null,2013,2,"Email from America","makkelijke tekst",94.888888888888886,1,-1.7399999999999993,null,null,null,null,null,"n-term",{"$f":"IF(P12=0,1,refgemcijfer-P13)","v":1},null,"","","",""]
[null,null,2013,3,"Upsides of being down","tekst van gemiddelde moeilijkheid",60.828888888888883,8,1.325400000000001,null,null,null,null,null,"afgeronde N",{"$f":"ROUND(P14,1)","v":1},null,"","","",""]
[null,null,2013,4,"Carbon capture","makkelijke tekst",80.888888888888886,1,-0.48000000000000043,null,null,null,null,null,null,null,null,"","","",""]
[null,null,2013,5,"The 21st-century land grab","tekst van gemiddelde moeilijkheid",67.158888888888882,10,0.75570000000000004,null,null,null,null,null,"Ref.gem.cijfer",6.8,null,"","","",""]
[null,null,2013,6,"Ice-cream? Watch out for sharks","tekst van gemiddelde moeilijkheid",60.328888888888883,9,1.370400000000001,null,null,null,null,null,null,null,null,"","","",""]
[null,null,2013,7,"iHuman","tekst van gemiddelde moeilijkheid",68.228888888888889,2,0.65940000000000065,null,null,null,null,null,null,null,null,"","","",""]
[null,null,2013,8,"Eyes for art","tekst van gemiddelde moeilijkheid",73.98888888888888,2,0.1410000000000009,null,null,null,null,null,null,null,null,"","","",""]
[null,null,2013,9,"Hustling spires","moeilijke tekst",50.308888888888887,8,2.2721999999999998,null,null,null,null,null,null,null,null,"","","",""]
[null,null,2013,10,"From a presentation…","makkelijke tekst",88.888888888888886,1,-1.2000000000000002,null,null,null,null,null,null,null,null,"","","",""]
[null,null,2013,11,"A no-brainer","tekst van gemiddelde moeilijkheid",68.888888888888886,1,0.59999999999999964,null,null,null,null,null,null,null,null,"","","",""]
[null,null,2014,1,"Parents and peers","tekst van gemiddelde moeilijkheid",62,1,1.2199999999999998,null,null,null,null,null,null,null,null,"","","",""]
[null,null,2014,2,"Don’t shoot the messenger","tekst van gemiddelde moeilijkheid",77.89,6,-0.21009999999999973,null,null,null,null,null,null,null,null,"","","",""]
[null,null,2014,3,"Tsunami tip-off","makkelijke tekst",81,2,-0.49000000000000021,null,null,null,null,null,null,null,null,"","","",""]
[null,null,2014,4,"Gorillas","makkelijke tekst",82,2,-0.58000000000000007,null,null,null,null,null,null,null,null,"","","",""]
[null,null,2014,5,"The click and the dead","tekst van gemiddelde moeilijkheid",76.849999999999994,9,-0.11650000000000027,null,null,null,null,null,null,null,null,"","","",""]
[null,null,2014,6,"My brain made me do it","tekst van gemiddelde moeilijkheid",71.180000000000007,5,0.39379999999999882,null,null,null,null,null,null,null,null,"","","",""]
[null,null,2014,7,"Break free of this world wide delusion","tekst van gemiddelde moeilijkheid",69.599999999999994,9,0.53600000000000048,null,null,null,null,null,null,null,null,"","","",""]
[null,null,2014,8,"An abattoir for dodgy arguments","tekst van gemiddelde moeilijkheid",66.42,10,0.82220000000000049,null,null,null,null,null,null,null,null,"","","",""]
[null,null,2014,9,"In sickness and in health","moeilijke tekst",44.48,3,2.7968000000000002,null,null,null,null,null,null,null,null,"","","",""]
[null,null,2014,10,"Dominoes tumble for school leavers","tekst van gemiddelde moeilijkheid",67,2,0.76999999999999957,null,null,null,null,null,null,null,null,"","","",""]
[null,null,2015,1,"Fair incentive","tekst van gemiddelde moeilijkheid",61.007777777777775,1,1.3093000000000004,null,null,null,null,null,null,null,null,"","","",""]
[null,null,2015,2,"Executive focus","makkelijke tekst",81.527777777777771,5,-0.53750000000000053,null,null,null,null,null,null,null,null,"","","",""]
[null,null,2015,3,"The end of the male gene pool?","tekst van gemiddelde moeilijkheid",72.257777777777775,3,0.29680000000000017,null,null,null,null,null,null,null,null,{"$f":"IF($K36=\"ü\",$G36,\"\")","v":""},{"$f":"IF($K36=\"ü\",$H36,\"\")","v":""},{"$f":"IF($K36=\"ü\",$I36,\"\")","v":""},{"$f":"IF($K36=\"ü\",$G36*$H36,\"\")","v":""}]
[null,null,2015,4,"Letters","tekst van gemiddelde moeilijkheid",65.967777777777769,4,0.86290000000000067,null,null,null,null,null,null,null,null,"","","",""]
[null,null,2015,5,"Getting better all the time","tekst van gemiddelde moeilijkheid",72.447777777777773,7,0.27970000000000006,null,null,null,null,null,null,null,null,"","","",""]
[null,null,2015,6,"A man of his time","tekst van gemiddelde moeilijkheid",75.027777777777771,8,4.7499999999999432E-2,null,null,null,null,null,null,null,null,"","","",""]
[null,null,2015,7,"Language needs to change","tekst van gemiddelde moeilijkheid",64.477777777777774,8,0.99699999999999989,null,null,null,null,null,null,null,null,"","","",""]
[null,null,2015,8,"Hamburger junction","tekst van gemiddelde moeilijkheid",70.067777777777778,6,0.49390000000000001,null,null,null,null,null,null,null,null,"","","",""]
[null,null,2015,9,"Colonial borders hamper Africa's trade renaissance","tekst van gemiddelde moeilijkheid",58.257777777777775,3,1.5568000000000008,null,null,null,null,null,null,null,null,"","","",""]
[null,null,2015,10,"Not so black and white","tekst van gemiddelde moeilijkheid",62.137777777777778,1,1.2075999999999993,null,null,null,null,null,null,null,null,"","","",""]
[null,null,2015,11,"Encrypted fabric","moeilijke tekst",49.297777777777782,2,2.3631999999999991,null,null,null,null,null,null,null,null,"","","",""]
[null,null,2016,1,"Can an economist dig a hole without another filling it?","tekst van gemiddelde moeilijkheid",57.367777777777782,2,1.6368999999999989,null,null,null,null,null,null,null,null,"","","",""]
[null,null,2016,2,"Kipling a plagiarist?","moeilijke tekst",38.217777777777776,4,3.3603999999999998,null,null,null,null,null,null,null,null,"","","",""]
[null,null,2016,3,"The serious business of fun","tekst van gemiddelde moeilijkheid",67.967777777777769,5,0.68290000000000095,null,null,null,null,null,null,null,null,"","","",""]
[null,null,2016,4,"A healthier urban jungle","tekst van gemiddelde moeilijkheid",57.667777777777779,7,1.6098999999999997,null,null,null,null,null,null,null,null,"","","",""]
[null,null,2016,5,"Book review: ‘The End of Men’","tekst van gemiddelde moeilijkheid",54.297777777777782,9,1.9131999999999989,null,null,null,null,null,null,null,null,"","","",""]
[null,null,2016,6,"‘Prosperity without growth’","tekst van gemiddelde moeilijkheid",62.037777777777784,6,1.2165999999999997,null,null,null,null,null,null,null,null,"","","",""]
[null,null,2016,7,"No Einstein in your crib? Get a refund","tekst van gemiddelde moeilijkheid",67.477777777777774,5,0.72700000000000031,null,null,null,null,null,null,null,null,"","","",""]
[null,null,2016,8,"Currency without borders","tekst van gemiddelde moeilijkheid",70.637777777777771,4,0.44260000000000055,null,null,null,null,null,null,null,null,"","","",""]
[null,null,2016,9,"Turning a digital page","tekst van gemiddelde moeilijkheid",66.517777777777766,1,0.81340000000000146,null,null,null,null,null,null,null,null,"","","",""]
[null,null,2016,10,"Really simmering","tekst van gemiddelde moeilijkheid",64.687777777777768,2,0.97810000000000041,null,null,null,null,null,null,null,null,"","","",""]
[null,null,2017,1,"Balanced argument","moeilijke tekst",30.607777777777773,1,4.0453000000000001,null,null,null,null,null,null,null,null,"","","",""]
[null,null,2017,2,"Spotting musical talent","tekst van gemiddelde moeilijkheid",76.267777777777766,4,-6.4099999999998936E-2,null,null,null,null,null,null,null,null,"","","",""]
[null,null,2017,3,"The race docket","tekst van gemiddelde moeilijkheid",60.617777777777782,5,1.3443999999999994,null,null,null,null,null,null,null,null,"","","",""]
[null,null,2017,4,"Clinical trials on trial","tekst van gemiddelde moeilijkheid",67.757777777777775,6,0.70180000000000042,null,null,null,null,null,null,null,null,"","","",""]
[null,null,2017,5,"Britain’s Brussels Syndrome","tekst van gemiddelde moeilijkheid",60.297777777777782,9,1.3731999999999989,null,null,null,null,null,null,null,null,"","","",""]
[null,null,2017,6,"The nanny state","moeilijke tekst",49.87777777777778,7,2.3109999999999991,null,null,null,null,null,null,null,null,"","","",""]
[null,null,2017,7,"We Need to Talk About Kevin","moeilijke tekst",46.747777777777777,5,2.5926999999999998,null,null,null,null,null,null,null,null,"","","",""]
[null,null,2017,8,"Shaken, stirred and confused","tekst van gemiddelde moeilijkheid",64.157777777777767,4,1.0258000000000012,null,null,null,null,null,null,null,null,"","","",""]
[null,null,2017,9,"On the scent of wine that never goes off","tekst van gemiddelde moeilijkheid",63.717777777777776,3,1.0653999999999995,null,null,null,null,null,null,null,null,"","","",""]
[null,null,2017,10,"Alpha male seeks lower stress level","moeilijke tekst",14.317777777777774,1,5.5114000000000001,null,null,null,null,null,null,null,null,"","","",""]
[null,null,2017,11,"Not just gesture politics?","tekst van gemiddelde moeilijkheid",56.817777777777778,1,1.6863999999999999,null,null,null,null,null,null,null,null,"","","",""]
[null,null,2017,12,"Plymouth Marine Laboratory","tekst van gemiddelde moeilijkheid",58.967777777777776,2,1.4928999999999997,null,null,null,null,null,null,null,null,"","","",""]
[null,null,2018,1,"Factory workers in Asia","makkelijke tekst",90.888888888888886,1,-1.38,null,null,null,null,null,null,null,null,"","","",""]
[null,null,2018,2,"LED carpet turns the floor into a screen","tekst van gemiddelde moeilijkheid",68.978888888888889,3,0.59190000000000076,null,null,null,null,null,null,null,null,{"$f":"IF($K68=\"ü\",$G68,\"\")","v":""},{"$f":"IF($K68=\"ü\",$H68,\"\")","v":""},{"$f":"IF($K68=\"ü\",$I68,\"\")","v":""},{"$f":"IF($K68=\"ü\",$G68*$H68,\"\")","v":""}]
[null,null,2018,3,"Figurative speech","moeilijke tekst",46.428888888888885,2,2.6214000000000004,null,null,null,null,null,null,null,null,"","","",""]
[null,null,2018,4,"Commitment, wedded or not","moeilijke tekst",50.188888888888883,5,2.2830000000000004,null,null,null,null,null,null,null,null,"","","",""]
[null,null,2018,5,"The death of the beard",{"$f":"IF(G71>P$7,\"makkelijke tekst\",IF(G71<P$6,\"moeilijke tekst\",\"tekst van gemiddelde moeilijkheid\"))","v":"moeilijke tekst"},43.668888888888887,6,2.8698000000000001,null,null,null,null,null,null,null,null,"","","",""]
[null,null,2018,6,"The driverless road ahead","tekst van gemiddelde moeilijkheid",72.068888888888893,7,0.31379999999999963,null,null,null,null,null,null,null,null,"","","",""]
[null,null,2018,7,"Womenomics","tekst van gemiddelde moeilijkheid",66.86888888888889,9,0.78179999999999961,null,null,null,null,null,null,null,null,"","","",""]
[null,null,2018,8,"A perfect opportunity","tekst van gemiddelde moeilijkheid",57.828888888888883,6,1.5954000000000006,null,null,null,null,null,null,null,null,"","","",""]
[null,null,2018,9,"Return to the Field","tekst van gemiddelde moeilijkheid",59.978888888888889,6,1.4019000000000004,null,null,null,null,null,null,null,null,"","","",""]
[null,null,2018,10,"Furloughed? Here’s an idea.","tekst van gemiddelde moeilijkheid",67.75888888888889,2,0.70169999999999977,null,null,null,null,null,null,null,null,"","","",""]
[null,null,2018,11,"Biofuel binge","tekst van gemiddelde moeilijkheid",60.888888888888886,1,1.3199999999999994,null,null,null,null,null,null,null,null,"","","",""]
[null,null,2019,1,"Less waste ","makkelijke tekst",81.848888888888879,2,-0.5663999999999989,null,null,null,null,null,null,null,null,"","","",""]
[null,null,2019,2,"Delicate delicacies","makkelijke tekst",88.718888888888884,2,-1.1846999999999994,null,null,null,null,null,null,null,null,"","","",""]
[null,null,2019,3,"Brain gain ","makkelijke tekst",86.318888888888893,2,-0.96870000000000012,null,null,null,null,null,null,null,null,"","","",""]
[null,null,2019,4,"Get a grip","tekst van gemiddelde moeilijkheid",79.208888888888879,4,-0.32879999999999932,null,null,null,null,null,null,null,null,"","","",""]
[null,null,2019,5,"Hard work is in her DNA","tekst van gemiddelde moeilijkheid",63.958888888888879,7,1.0437000000000012,null,null,null,null,null,null,null,null,"","","",""]
[null,null,2019,6,"Poor Shakespeare must be turning in his grave","tekst van gemiddelde moeilijkheid",59.858888888888885,9,1.4127000000000001,null,null,null,null,null,null,null,null,"","","",""]
[null,null,2019,7,"An attempt to make football more beautiful","tekst van gemiddelde moeilijkheid",64.458888888888879,7,0.99870000000000125,null,null,null,null,null,null,null,null,"","","",""]
[null,null,2019,8,"Careless in Red","tekst van gemiddelde moeilijkheid",67.278888888888886,7,0.74490000000000034,null,null,null,null,null,null,null,null,"","","",""]
[null,null,2019,9,"Future of our past?","moeilijke tekst",53.558888888888887,2,1.9797000000000002,null,null,null,null,null,null,null,null,"","","",""]
[null,null,2019,10,"Alarm bells are ringing","makkelijke tekst",89.888888888888886,1,-1.29,null,null,null,null,null,null,null,null,"","","",""]
[null,null,2019,11,"CT scans ","tekst van gemiddelde moeilijkheid",78.888888888888886,1,-0.29999999999999982,null,null,null,null,null,null,null,null,"","","",""]
[null,null,2019,12,"The BBC should not just peddle fashionable views ",{"$f":"IF(G89>P$7,\"makkelijke tekst\",IF(G89<P$6,\"moeilijke tekst\",\"tekst van gemiddelde moeilijkheid\"))","v":"tekst van gemiddelde moeilijkheid"},55.888888888888886,1,1.7699999999999996,null,null,null,null,null,null,null,null,"","","",""]
[null,null,2021,1,"Wolf Hall","makkelijke tekst",88.888888888888886,1,-1.2000000000000002,null,null,null,null,null,null,null,null,"","","",""]
[null,null,2021,2,"The NHS","tekst van gemiddelde moeilijkheid",77.888888888888886,2,-0.20999999999999996,null,null,null,null,null,null,null,null,"","","",""]
[null,null,2021,3,"All that glisters","tekst van gemiddelde moeilijkheid",76.918888888888887,3,-0.12270000000000003,null,null,null,null,null,null,null,null,"","","",""]
[null,null,2021,4,"Gentrification","tekst van gemiddelde moeilijkheid",73.408888888888882,9,0.19320000000000004,null,null,null,null,null,null,null,null,"","","",""]
[null,null,2021,5,"If you want to run the world, …","tekst van gemiddelde moeilijkheid",71.11888888888889,7,0.39929999999999932,null,null,null,null,null,null,null,null,"","","",""]
[null,null,2021,6,"The allure of the British seaside","tekst van gemiddelde moeilijkheid",70.73888888888888,6,0.43350000000000133,null,null,null,null,null,null,null,null,"","","",""]
[null,null,2021,7,"Rebooting the real","tekst van gemiddelde moeilijkheid",72.588888888888889,5,0.26700000000000035,null,null,null,null,null,null,null,null,"","","",""]
[null,null,2021,8,"Hot Milk","tekst van gemiddelde moeilijkheid",76.288888888888891,5,-6.6000000000000725E-2,null,null,null,null,null,null,null,null,"","","",""]
[null,null,2021,9,"Can you be friends with your coffee maker?","tekst van gemiddelde moeilijkheid",67.518888888888881,3,0.72330000000000005,null,null,null,null,null,null,null,null,"","","",""]
[null,null,2021,10,"Mole hunting","tekst van gemiddelde moeilijkheid",77.888888888888886,1,-0.20999999999999996,null,null,null,null,null,null,null,null,"","","",""]
[null,null,2021,11,"A tizz about fizz","tekst van gemiddelde moeilijkheid",64.908888888888882,3,0.95820000000000061,null,null,null,null,null,null,null,null,{"$f":"IF($K100=\"ü\",$G100,\"\")","v":""},{"$f":"IF($K100=\"ü\",$H100,\"\")","v":""},{"$f":"IF($K100=\"ü\",$I100,\"\")","v":""},{"$f":"IF($K100=\"ü\",$G100*$H100,\"\")","v":""}]
[null,null,2021,12,"Vacancy: President of the Fondation Ipsen","moeilijke tekst",50.008888888888883,3,2.2992000000000008,null,null,null,null,null,null,null,null,"","","",""]
[null,null,2022,1,"Quite a scoop","tekst van gemiddelde moeilijkheid",62.857777777777777,2,1.1427999999999994,null,null,null,null,null,null,null,null,"","","",""]
[null,null,2022,2,"Tekst 2","moeilijke tekst",52.19777777777778,2,2.1021999999999998,null,null,null,null,null,null,null,null,"","","",""]
[null,null,2022,3,"Is Caffè Nero acting pennywise?","tekst van gemiddelde moeilijkheid",75.577777777777769,8,-1.9999999999997797E-3,null,null,null,null,null,null,null,null,"","","",""]
[null,null,2022,4,"What would you pay for an empty room?","tekst van gemiddelde moeilijkheid",73.227777777777774,8,0.20950000000000024,null,null,null,null,null,null,null,null,"","","",""]
[null,null,2022,5,"Small-scale mining","tekst van gemiddelde moeilijkheid",75.477777777777774,6,7.0000000000005613E-3,null,null,null,null,null,null,null,null,"","","",""]
[null,null,2022,6,"Sunset saddles","tekst van gemiddelde moeilijkheid",73.167777777777772,7,0.21490000000000009,null,null,null,null,null,null,null,null,"","","",""]
[null,null,2022,7,"A Delicate Truth","tekst van gemiddelde moeilijkheid",68.74777777777777,8,0.61270000000000113,null,null,null,null,null,null,null,null,"","","",""]
[null,null,2022,8,"Surely one who robs a bank is a thief?","tekst van gemiddelde moeilijkheid",68.777777777777771,1,0.60999999999999943,null,null,null,null,null,null,null,null,"","","",""]
[null,null,2022,9,"Healthy diet","tekst van gemiddelde moeilijkheid",78.067777777777778,2,-0.22610000000000063,null,null,null,null,null,null,null,null,"","","",""]
[null,null,2022,10,"Oxbridge ‘rejects’","tekst van gemiddelde moeilijkheid",60.297777777777782,3,1.3731999999999989,null,null,null,null,null,null,null,null,"","","",""]
[null,null,2022,11,"New books we recommend this week","tekst van gemiddelde moeilijkheid",68.777777777777771,2,0.60999999999999943,null,null,null,null,null,null,null,null,"","","",""]
[null,null,2023,1,"Boris should look to the satirists","moeilijke tekst",42.888888888888886,1,2.94,null,null,null,null,null,null,null,null,"","","",""]
[null,null,2023,2,"This art is bananas","tekst van gemiddelde moeilijkheid",59.888888888888886,2,1.4100000000000001,null,null,null,null,null,null,null,null,"","","",""]
[null,null,2023,3,"THE ETHICIST","tekst van gemiddelde moeilijkheid",56.888888888888886,2,1.6799999999999997,null,null,null,null,null,null,null,null,"","","",""]
[null,null,2023,4,"Style Guide","moeilijke tekst",31.888888888888882,1,3.9300000000000006,null,null,null,null,null,null,null,null,"","","",""]
[null,null,2023,5,"Does the Age of Your Doctor Matter?","makkelijke tekst",83.888888888888886,3,-0.75,null,null,null,null,null,null,null,null,"","","",""]
[null,null,2023,6,"Weight loss celebs","tekst van gemiddelde moeilijkheid",74.888888888888886,6,5.9999999999999609E-2,null,null,null,null,null,null,null,null,"","","",""]
[null,null,2023,7,"Teaching 'grit' is bad for children, and bad for democracy","makkelijke tekst",79.888888888888886,8,-0.39000000000000057,null,null,null,null,null,null,null,null,"","","",""]
[null,null,2023,8,"The hipster effect","makkelijke tekst",83.888888888888886,6,-0.75,null,null,null,null,null,null,null,null,"","","",""]
[null,null,2023,9,"The future of diversity","tekst van gemiddelde moeilijkheid",63.888888888888886,8,1.0499999999999998,null,null,null,null,null,null,null,null,"","","",""]
[null,null,2023,10,"Tekst 10","tekst van gemiddelde moeilijkheid",75.888888888888886,5,-3.0000000000000249E-2,null,null,null,null,null,null,null,null,"","","",""]
[null,null,2023,11,"Searching for answers","makkelijke tekst",84.888888888888886,1,-0.83999999999999986,null,null,null,null,null,null,null,null,"","","",""]
[null,null,2023,12,"Tekst 12","moeilijke tekst",51.888888888888886,1,2.13,null,null,null,null,null,null,null,null,"","","",""]
[null,null,2023,13,"Education in Australia a race to the Finnish","makkelijke tekst",85.888888888888886,1,-0.9300000000000006,null,null,null,null,null,null,null,null,"","","",""]
[null,null,2024,1,"New Beatles Documentary: a review by Barry Liptak",{"$f":"IF(G126>P$7,\"makkelijke tekst\",IF(G126<P$6,\"moeilijke tekst\",\"tekst van gemiddelde moeilijkheid\"))","v":"makkelijke tekst"},80,1,-0.40000000000000036,null,null,null,null,null,null,null,null,"","","",""]
[null,null,2024,2,"Tekst 2","tekst van gemiddelde moeilijkheid",69,2,0.58999999999999986,null,null,null,null,null,null,null,null,"","","",""]
[null,null,2024,3,"Review: HARLEM SHUFFLE by Colson Whitehead","tekst van gemiddelde moeilijkheid",63,4,1.1299999999999999,null,null,null,null,null,null,null,null,"","","",""]
[null,null,2024,4,"Universal Basic Income","makkelijke tekst",82,7,-0.58000000000000007,null,null,null,null,null,null,null,null,"","","",""]
[null,null,2024,5,"A Letter on Justice and Open Debate","tekst van gemiddelde moeilijkheid",65,4,0.95000000000000018,null,null,null,null,null,null,null,null,"","","",""]
[null,null,2024,6,"The Romantics and Break Up Songs","tekst van gemiddelde moeilijkheid",67,6,0.76999999999999957,null,null,null,null,null,null,null,null,"","","",""]
[null,null,2024,7,"Rationality","tekst van gemiddelde moeilijkheid",69,10,0.58999999999999986,null,null,null,null,null,null,null,null,"","","",""]
[null,null,2024,8,"Tekst 8","tekst van gemiddelde moeilijkheid",63,3,1.1299999999999999,null,null,null,null,null,null,null,null,"","","",""]
[null,null,2024,9,"Why would we learn another language?","tekst van gemiddelde moeilijkheid",68,7,0.67999999999999972,null,null,null,null,null,null,null,null,"","","",""]
[null,null,2024,10,"Social Mobility","tekst van gemiddelde moeilijkheid",72,1,0.3199999999999994,null,null,null,null,null,null,null,null,"","","",""]
[null,null,2024,11,"Readers respond to an essay …","moeilijke tekst",46,2,2.66,null,null,null,null,null,null,null,null,"","","",""]

{"sheet":"geselecteerde teksten","index":1,"n_rows":10,"n_cols":7,"rows_kept":10,"cut":false,"hidden":false,"merged":[[11,4,11,5],[10,4,10,5],[9,4,9,5]]}
[null,"Engels vwo"]
[]
[null,null,"inhoud van de toets"]
[]
[null,null,"schaallengte",null,{"$f":"'selecteer de teksten'!P12","v":0}]
[null,null,"N-term",null,{"$f":"'selecteer de teksten'!P15","v":1}]
[]
[null,null,"teksten in chronologische volgorde"]
[]
[null,null,"jaar","tekst","omschrijving",null,"punten"]

{"sheet":"omzettingstabel","index":2,"n_rows":13,"n_cols":16,"rows_kept":13,"cut":false,"hidden":false,"merged":[]}
[]
[null,"Vaknaam:",null,null,null,{"$f":"'selecteer de teksten'!B1","v":"Engels vwo"}]
[null,"Schaallengte:",null,null,null,5]
[null,"Normeringsterm:",null,null,null,1.2]
[]
[null,"Score","Cijfer",null,null,null,null,null,null,null,null,null,null,null,null,"####"]
[]
[null,0,"1,0"]
[null,1,"3,0"]
[null,2,"4,8"]
[null,3,"6,6"]
[null,4,"8,4"]
[null,5,"10,0"]